[Event "Titled Tuesday Blitz April 12 Early 2022"]
[White "Le Ruyet, Leopold"]
[Black "Kosakowski, Jakub"]
[WhiteFideId "645923"]
[BlackFideId "1185080"]
[WhiteElo "2276"]
[BlackElo "2454"]
[Result "0-1"]
[Round "04"]
[TimeControl "180+1"]
[Date "2022.04.13"]
[WhiteClock "0:00:03"]
[BlackClock "0:00:13"]

1. e4 {[%clk 0:03:00]}  c5 {[%clk 0:02:49]} 2. c3 {[%clk 0:03:00]}  Nf6 {[%clk 0:02:48]} 3. e5 {[%clk 0:03:01]}  Nd5 {[%clk 0:02:49]} 4. Nf3 {[%clk 0:02:59]}  e6 {[%clk 0:02:48]} 5. Bc4 {[%clk 0:02:59]}  d6 {[%clk 0:02:45]} 6. d4 {[%clk 0:02:56]}  cxd4 {[%clk 0:02:43]} 7. cxd4 {[%clk 0:02:56]}  Nc6 {[%clk 0:02:40]} 8. O-O {[%clk 0:02:56]}  Be7 {[%clk 0:02:40]} 9. Qe2 {[%clk 0:02:55]}  O-O {[%clk 0:02:40]} 10. Rd1 {[%clk 0:02:55]}  Bd7 {[%clk 0:02:28]} 11. Nc3 {[%clk 0:02:53]}  Ncb4 {[%clk 0:02:16]} 12. Ne4 {[%clk 0:02:37]}  dxe5 {[%clk 0:02:01]} 13. dxe5 {[%clk 0:02:24]}  Rc8 {[%clk 0:01:56]} 14. a3 {[%clk 0:02:16]}  Qc7 {[%clk 0:01:49]} 15. Bb3 {[%clk 0:02:03]}  Nc6 {[%clk 0:01:05]} 16. Bg5 {[%clk 0:01:14]}  Bxg5 {[%clk 0:00:54]} 17. Nexg5 {[%clk 0:01:12]}  h6 {[%clk 0:00:53]} 18. Nh3 {[%clk 0:01:03]}  Nce7 {[%clk 0:00:51]} 19. Qe4 {[%clk 0:00:57]}  Qb6 {[%clk 0:00:33]} 20. Bc2 {[%clk 0:00:56]}  Nf5 {[%clk 0:00:32]} 21. Bd3 {[%clk 0:00:47]}  Bb5 {[%clk 0:00:31]} 22. Bb1 {[%clk 0:00:33]}  Rfd8 {[%clk 0:00:29]} 23. Re1 {[%clk 0:00:30]}  Rc4 {[%clk 0:00:28]} 24. Qe2 {[%clk 0:00:18]}  Nf4 {[%clk 0:00:28]} 25. Nxf4 {[%clk 0:00:16]}  Rxf4 {[%clk 0:00:29]} 26. Qc2 {[%clk 0:00:14]}  Bd3 {[%clk 0:00:28]} 27. Qd2 {[%clk 0:00:12]}  Rxf3 {[%clk 0:00:28]} 28. gxf3 {[%clk 0:00:11]}  Bxb1 {[%clk 0:00:28]} 29. Qf4 {[%clk 0:00:10]}  Bd3 {[%clk 0:00:27]} 30. Rad1 {[%clk 0:00:10]}  Rd4 {[%clk 0:00:27]} 31. Qc1 {[%clk 0:00:05]}  Qd8 {[%clk 0:00:25]} 32. Qc3 {[%clk 0:00:03]}  Nh4 {[%clk 0:00:23]} 33. Kh1 {[%clk 0:00:02]}  Qg5 {[%clk 0:00:18]} 34. Rg1 {[%clk 0:00:02]}  Qf4 {[%clk 0:00:19]} 35. Rg3 {[%clk 0:00:02]}  Nxf3 {[%clk 0:00:18]} 36. Rxd3 {[%clk 0:00:02]}  Rxd3 {[%clk 0:00:12]} 37. Qxd3 {[%clk 0:00:03]}  Nxe5 {[%clk 0:00:13]} 38. Qd8+ {[%clk 0:00:02]}  Kh7 {[%clk 0:00:13]} 39. Qd1 {[%clk 0:00:03]}  Qe4+ {[%clk 0:00:13]} 0-1


[Site "https://www.chess.com"]

[Event "Titled Tuesday Blitz April 12 Early 2022"]
[White "Legenia, Artem"]
[Black "Bilan, Danila"]
[WhiteFideId "14136945"]
[BlackFideId "24161918"]
[WhiteElo "1936"]
[BlackElo "2164"]
[Result "0-1"]
[Round "04"]
[TimeControl "180+1"]
[Date "2022.04.13"]
[WhiteClock "0:00:06"]
[BlackClock "0:00:37"]

1. c4 {[%clk 0:02:42]}  c6 {[%clk 0:02:59]} 2. b3 {[%clk 0:02:27]}  d5 {[%clk 0:02:59]} 3. e3 {[%clk 0:02:24]}  Nf6 {[%clk 0:02:58]} 4. Bb2 {[%clk 0:02:23]}  Bf5 {[%clk 0:02:57]} 5. cxd5 {[%clk 0:02:23]}  cxd5 {[%clk 0:02:57]} 6. d3 {[%clk 0:02:22]}  Nc6 {[%clk 0:02:54]} 7. a3 {[%clk 0:02:23]}  e6 {[%clk 0:02:54]} 8. Nf3 {[%clk 0:02:23]}  h6 {[%clk 0:02:54]} 9. Be2 {[%clk 0:02:23]}  Bd6 {[%clk 0:02:53]} 10. O-O {[%clk 0:02:21]}  O-O {[%clk 0:02:54]} 11. Nbd2 {[%clk 0:02:22]}  Rc8 {[%clk 0:02:53]} 12. b4 {[%clk 0:02:22]}  Bb8 {[%clk 0:02:53]} 13. Re1 {[%clk 0:02:19]}  Bh7 {[%clk 0:02:46]} 14. Bf1 {[%clk 0:02:03]}  Qe7 {[%clk 0:02:36]} 15. e4 {[%clk 0:01:59]}  dxe4 {[%clk 0:02:09]} 16. dxe4 {[%clk 0:01:58]}  Rfd8 {[%clk 0:02:00]} 17. Qb3 {[%clk 0:01:58]}  Ng4 {[%clk 0:01:21]} 18. h3 {[%clk 0:01:37]}  Nge5 {[%clk 0:01:17]} 19. Nxe5 {[%clk 0:01:36]}  Nxe5 {[%clk 0:01:11]} 20. Nc4 {[%clk 0:01:18]}  Nxc4 {[%clk 0:01:04]} 21. Bxc4 {[%clk 0:01:14]}  Qc7 {[%clk 0:01:03]} 22. Rac1 {[%clk 0:00:15]}  Qh2+ {[%clk 0:01:00]} 23. Kf1 {[%clk 0:00:14]}  Qh1+ {[%clk 0:00:59]} 24. Ke2 {[%clk 0:00:14]}  Qxg2 {[%clk 0:00:58]} 25. Qe3 {[%clk 0:00:10]}  Qxe4 {[%clk 0:00:52]} 26. Qxe4 {[%clk 0:00:08]}  Bxe4 {[%clk 0:00:53]} 27. f3 {[%clk 0:00:06]}  Bf5 {[%clk 0:00:45]} 28. h4 {[%clk 0:00:06]}  Rxc4 {[%clk 0:00:37]} 0-1


[Site "https://www.chess.com"]

[Event "Titled Tuesday Blitz April 12 Early 2022"]
[White "Lianes Garcia, Marcos"]
[Black "Estrada Nieto, Julian"]
[WhiteFideId "32060777"]
[BlackFideId "5101018"]
[WhiteElo "2310"]
[BlackElo "2252"]
[Result "1-0"]
[Round "04"]
[TimeControl "180+1"]
[Date "2022.04.13"]
[WhiteClock "0:00:55"]
[BlackClock "0:00:31"]

1. e4 {[%clk 0:03:00]}  e5 {[%clk 0:02:59]} 2. g3 {[%clk 0:03:01]}  Nc6 {[%clk 0:02:59]} 3. Bg2 {[%clk 0:03:01]}  Nf6 {[%clk 0:02:59]} 4. Ne2 {[%clk 0:03:01]}  d5 {[%clk 0:02:59]} 5. exd5 {[%clk 0:03:02]}  Nxd5 {[%clk 0:03:00]} 6. d4 {[%clk 0:03:03]}  exd4 {[%clk 0:02:42]} 7. Nxd4 {[%clk 0:03:04]}  Qe7+ {[%clk 0:02:32]} 8. Kf1 {[%clk 0:03:00]}  Nxd4 {[%clk 0:02:29]} 9. Qxd4 {[%clk 0:02:59]}  Nf6 {[%clk 0:02:24]} 10. Bg5 {[%clk 0:02:55]}  Qd6 {[%clk 0:02:10]} 11. Bxf6 {[%clk 0:02:51]}  gxf6 {[%clk 0:02:09]} 12. Qe4+ {[%clk 0:02:46]}  Be7 {[%clk 0:02:07]} 13. Nc3 {[%clk 0:02:44]}  Qb4 {[%clk 0:01:56]} 14. Qxb4 {[%clk 0:02:33]}  Bxb4 {[%clk 0:01:55]} 15. Nd5 {[%clk 0:02:34]}  Bd6 {[%clk 0:01:51]} 16. Nxf6+ {[%clk 0:02:34]}  Kf8 {[%clk 0:01:52]} 17. Ne4 {[%clk 0:02:33]}  Be5 {[%clk 0:01:51]} 18. c3 {[%clk 0:02:33]}  Bf5 {[%clk 0:01:50]} 19. f4 {[%clk 0:02:24]}  Bxe4 {[%clk 0:01:42]} 20. Bxe4 {[%clk 0:02:25]}  Bd6 {[%clk 0:01:42]} 21. Kf2 {[%clk 0:02:17]}  Re8 {[%clk 0:01:41]} 22. Rhe1 {[%clk 0:02:15]}  c6 {[%clk 0:01:37]} 23. Rad1 {[%clk 0:02:14]}  Bc5+ {[%clk 0:01:36]} 24. Kf3 {[%clk 0:02:14]}  Re7 {[%clk 0:01:35]} 25. Bf5 {[%clk 0:02:06]}  Rxe1 {[%clk 0:01:33]} 26. Rxe1 {[%clk 0:02:07]}  Kg7 {[%clk 0:01:33]} 27. Rd1 {[%clk 0:02:06]}  Re8 {[%clk 0:01:31]} 28. Be4 {[%clk 0:02:07]}  Re7 {[%clk 0:01:29]} 29. g4 {[%clk 0:02:01]}  a5 {[%clk 0:01:23]} 30. h4 {[%clk 0:02:00]}  h6 {[%clk 0:01:22]} 31. g5 {[%clk 0:01:58]}  hxg5 {[%clk 0:01:21]} 32. hxg5 {[%clk 0:01:59]}  f6 {[%clk 0:01:17]} 33. g6 {[%clk 0:01:55]}  a4 {[%clk 0:01:05]} 34. Rd2 {[%clk 0:01:40]}  Bb6 {[%clk 0:01:04]} 35. a3 {[%clk 0:01:31]}  Bc5 {[%clk 0:01:04]} 36. Bc2 {[%clk 0:01:30]}  b5 {[%clk 0:01:00]} 37. Kg4 {[%clk 0:01:26]}  Be3 {[%clk 0:00:56]} 38. Rh2 {[%clk 0:01:20]}  Kg8 {[%clk 0:00:46]} 39. Kf5 {[%clk 0:01:17]}  Rd7 {[%clk 0:00:44]} 40. Be4 {[%clk 0:01:16]}  Rd2 {[%clk 0:00:38]} 41. Rxd2 {[%clk 0:01:01]}  Bxd2 {[%clk 0:00:38]} 42. Bxc6 {[%clk 0:01:00]}  Bc1 {[%clk 0:00:38]} 43. Kxf6 {[%clk 0:00:55]}  Bxb2 {[%clk 0:00:31]} 44. Bd5+ {[%clk 0:00:55]} 1-0


[Site "https://www.chess.com"]

[Event "Titled Tuesday Blitz April 12 Early 2022"]
[White "Lobachev, Yury"]
[Black "Aaditya Dhingra"]
[WhiteFideId "24138177"]
[BlackFideId "25678191"]
[WhiteElo "2309"]
[BlackElo "1849"]
[Result "0-1"]
[Round "04"]
[TimeControl "180+1"]
[Date "2022.04.13"]
[WhiteClock "0:00:02"]
[BlackClock "0:00:04"]

1. c4 {[%clk 0:03:00]}  e6 {[%clk 0:02:56]} 2. Nc3 {[%clk 0:02:55]}  d5 {[%clk 0:02:55]} 3. cxd5 {[%clk 0:02:56]}  exd5 {[%clk 0:02:55]} 4. d4 {[%clk 0:02:57]}  Be7 {[%clk 0:02:54]} 5. Nf3 {[%clk 0:02:57]}  c6 {[%clk 0:02:55]} 6. g3 {[%clk 0:02:57]}  Nf6 {[%clk 0:02:55]} 7. Bg2 {[%clk 0:02:58]}  O-O {[%clk 0:02:55]} 8. O-O {[%clk 0:02:58]}  Re8 {[%clk 0:02:56]} 9. Bg5 {[%clk 0:02:58]}  Ne4 {[%clk 0:02:54]} 10. Bxe7 {[%clk 0:02:58]}  Qxe7 {[%clk 0:02:54]} 11. e3 {[%clk 0:02:58]}  Bf5 {[%clk 0:02:52]} 12. Nxe4 {[%clk 0:02:54]}  Bxe4 {[%clk 0:02:51]} 13. Nd2 {[%clk 0:02:54]}  Bxg2 {[%clk 0:02:49]} 14. Kxg2 {[%clk 0:02:55]}  Nd7 {[%clk 0:02:49]} 15. Rb1 {[%clk 0:02:53]}  a5 {[%clk 0:02:48]} 16. a3 {[%clk 0:02:52]}  a4 {[%clk 0:02:46]} 17. Rc1 {[%clk 0:02:26]}  f5 {[%clk 0:02:44]} 18. Nb1 {[%clk 0:02:25]}  Nf6 {[%clk 0:02:41]} 19. Nc3 {[%clk 0:02:25]}  b5 {[%clk 0:02:37]} 20. Ne2 {[%clk 0:02:22]}  Rac8 {[%clk 0:02:31]} 21. Nf4 {[%clk 0:02:21]}  Qe4+ {[%clk 0:02:20]} 22. Kg1 {[%clk 0:02:21]}  g6 {[%clk 0:02:14]} 23. Qc2 {[%clk 0:02:18]}  Qf3 {[%clk 0:01:56]} 24. Qd1 {[%clk 0:02:17]}  Qe4 {[%clk 0:01:52]} 25. Qc2 {[%clk 0:02:18]}  g5 {[%clk 0:01:21]} 26. Nd3 {[%clk 0:02:15]}  Qg4 {[%clk 0:01:03]} 27. Ne5 {[%clk 0:02:07]}  Qh3 {[%clk 0:01:02]} 28. f3 {[%clk 0:01:51]}  Re6 {[%clk 0:00:54]} 29. Qg2 {[%clk 0:01:28]}  Qh6 {[%clk 0:00:53]} 30. Rc5 {[%clk 0:01:27]}  g4 {[%clk 0:00:48]} 31. f4 {[%clk 0:00:59]}  Ne4 {[%clk 0:00:46]} 32. Rc2 {[%clk 0:01:00]}  Qf8 {[%clk 0:00:29]} 33. Rfc1 {[%clk 0:01:00]}  Qe8 {[%clk 0:00:29]} 34. Kh1 {[%clk 0:00:52]}  h5 {[%clk 0:00:28]} 35. Kg1 {[%clk 0:00:42]}  h4 {[%clk 0:00:27]} 36. Kf1 {[%clk 0:00:42]}  Rh6 {[%clk 0:00:24]} 37. Ke2 {[%clk 0:00:31]}  hxg3 {[%clk 0:00:23]} 38. hxg3 {[%clk 0:00:32]}  Rh3 {[%clk 0:00:19]} 39. Kd3 {[%clk 0:00:25]}  Rxg3 {[%clk 0:00:18]} 40. Qh2 {[%clk 0:00:24]}  Rh3 {[%clk 0:00:18]} 41. Qg2 {[%clk 0:00:23]}  Rh6 {[%clk 0:00:16]} 42. Rh1 {[%clk 0:00:21]}  Qe6 {[%clk 0:00:14]} 43. Rcc1 {[%clk 0:00:15]}  c5 {[%clk 0:00:12]} 44. dxc5 {[%clk 0:00:12]}  Nxc5+ {[%clk 0:00:11]} 45. Ke2 {[%clk 0:00:12]}  Rxh1 {[%clk 0:00:08]} 46. Qxh1 {[%clk 0:00:10]}  Ne4 {[%clk 0:00:07]} 47. Rxc8+ {[%clk 0:00:09]}  Qxc8 {[%clk 0:00:08]} 48. Qd1 {[%clk 0:00:08]}  Qc5 {[%clk 0:00:06]} 49. Nd3 {[%clk 0:00:07]}  Qc4 {[%clk 0:00:05]} 50. Kf1 {[%clk 0:00:05]}  Ng3+ {[%clk 0:00:04]} 51. Kg2 {[%clk 0:00:05]}  Ne4 {[%clk 0:00:04]} 52. Ne5 {[%clk 0:00:05]}  Qc5 {[%clk 0:00:04]} 53. Qe2 {[%clk 0:00:03]}  d4 {[%clk 0:00:04]} 54. exd4 {[%clk 0:00:03]}  Qxd4 {[%clk 0:00:05]} 55. Ng6 {[%clk 0:00:02]}  Qd6 {[%clk 0:00:04]} 0-1


[Site "https://www.chess.com"]

[Event "Titled Tuesday Blitz April 12 Early 2022"]
[White "Lorparizangeneh, Shahin"]
[Black "Vokhidov, Shamsiddin"]
[WhiteFideId "12521604"]
[BlackFideId "14204223"]
[WhiteElo "2525"]
[BlackElo "2611"]
[Result "1/2-1/2"]
[Round "04"]
[TimeControl "180+1"]
[Date "2022.04.12"]
[WhiteClock "0:00:12"]
[BlackClock "0:00:09"]

1. d4 {[%clk 0:03:00]}  Nf6 {[%clk 0:03:00]} 2. c4 {[%clk 0:03:00]}  e6 {[%clk 0:03:00]} 3. g3 {[%clk 0:02:59]}  c5 {[%clk 0:03:00]} 4. Nf3 {[%clk 0:02:53]}  cxd4 {[%clk 0:03:00]} 5. Nxd4 {[%clk 0:02:54]}  Qb6 {[%clk 0:03:01]} 6. Bg2 {[%clk 0:02:53]}  Bc5 {[%clk 0:02:59]} 7. e3 {[%clk 0:02:53]}  Nc6 {[%clk 0:03:00]} 8. Nb5 {[%clk 0:02:36]}  d5 {[%clk 0:02:58]} 9. O-O {[%clk 0:02:23]}  O-O {[%clk 0:02:57]} 10. cxd5 {[%clk 0:02:19]}  exd5 {[%clk 0:02:51]} 11. N5c3 {[%clk 0:02:18]}  Rd8 {[%clk 0:02:16]} 12. Na4 {[%clk 0:02:13]}  Qa5 {[%clk 0:02:16]} 13. Nxc5 {[%clk 0:01:59]}  Qxc5 {[%clk 0:02:17]} 14. Nd2 {[%clk 0:01:50]}  Bg4 {[%clk 0:02:11]} 15. Qa4 {[%clk 0:01:50]}  Nb4 {[%clk 0:02:01]} 16. Nb3 {[%clk 0:01:39]}  Qb6 {[%clk 0:01:49]} 17. Bd2 {[%clk 0:01:39]}  a5 {[%clk 0:01:48]} 18. Nxa5 {[%clk 0:01:22]}  Rxa5 {[%clk 0:01:25]} 19. Qxb4 {[%clk 0:01:22]}  Rb5 {[%clk 0:01:25]} 20. Qa3 {[%clk 0:01:10]}  Ne4 {[%clk 0:01:14]} 21. Bc3 {[%clk 0:01:10]}  Nxc3 {[%clk 0:00:59]} 22. bxc3 {[%clk 0:01:11]}  Rc8 {[%clk 0:00:55]} 23. h3 {[%clk 0:01:10]}  Be6 {[%clk 0:00:54]} 24. Rfd1 {[%clk 0:01:06]}  Qc7 {[%clk 0:00:47]} 25. Rac1 {[%clk 0:01:02]}  Ra5 {[%clk 0:00:45]} 26. Qb2 {[%clk 0:00:57]}  Rca8 {[%clk 0:00:44]} 27. Rb1 {[%clk 0:00:25]}  R8a7 {[%clk 0:00:28]} 28. Qb4 {[%clk 0:00:23]}  g6 {[%clk 0:00:20]} 29. Rd2 {[%clk 0:00:20]}  Rxa2 {[%clk 0:00:18]} 30. Rxa2 {[%clk 0:00:20]}  Rxa2 {[%clk 0:00:19]} 31. Qxb7 {[%clk 0:00:20]}  Qxc3 {[%clk 0:00:17]} 32. Bxd5 {[%clk 0:00:20]}  Bxd5 {[%clk 0:00:13]} 33. Qxd5 {[%clk 0:00:21]}  Rd2 {[%clk 0:00:09]} 34. Qf3 {[%clk 0:00:15]}  Qd3 {[%clk 0:00:08]} 35. Rb7 {[%clk 0:00:13]}  Qd5 {[%clk 0:00:05]} 36. Qxd5 {[%clk 0:00:08]}  Rxd5 {[%clk 0:00:06]} 37. Kg2 {[%clk 0:00:08]}  h5 {[%clk 0:00:06]} 38. g4 {[%clk 0:00:09]}  hxg4 {[%clk 0:00:06]} 39. hxg4 {[%clk 0:00:10]}  g5 {[%clk 0:00:07]} 40. Kg3 {[%clk 0:00:10]}  Kg7 {[%clk 0:00:07]} 41. Rb6 {[%clk 0:00:10]}  f6 {[%clk 0:00:07]} 42. f4 {[%clk 0:00:09]}  Rd3 {[%clk 0:00:06]} 43. Kf3 {[%clk 0:00:09]}  gxf4 {[%clk 0:00:06]} 44. Kxf4 {[%clk 0:00:10]}  Rd5 {[%clk 0:00:07]} 45. e4 {[%clk 0:00:09]}  Rc5 {[%clk 0:00:08]} 46. Rd6 {[%clk 0:00:09]}  Kf7 {[%clk 0:00:08]} 47. Rd5 {[%clk 0:00:09]}  Rc1 {[%clk 0:00:08]} 48. Ra5 {[%clk 0:00:09]}  Rf1+ {[%clk 0:00:08]} 49. Kg3 {[%clk 0:00:09]}  Rg1+ {[%clk 0:00:08]} 50. Kf3 {[%clk 0:00:10]}  Rf1+ {[%clk 0:00:09]} 51. Kg2 {[%clk 0:00:10]}  Rf4 {[%clk 0:00:09]} 52. Kg3 {[%clk 0:00:10]}  Rxe4 {[%clk 0:00:09]} 53. g5 {[%clk 0:00:10]}  fxg5 {[%clk 0:00:09]} 54. Rxg5 {[%clk 0:00:11]}  Kf6 {[%clk 0:00:09]} 55. Rg4 {[%clk 0:00:12]}  Rxg4+ {[%clk 0:00:09]} 56. Kxg4 {[%clk 0:00:12]} 1/2-1/2


[Site "https://www.chess.com"]

[Event "Titled Tuesday Blitz April 12 Early 2022"]
[White "Manukyan, Artyom"]
[Black "Ahmadzada, Ahmad"]
[WhiteFideId "13305786"]
[BlackFideId "13413007"]
[WhiteElo "2034"]
[BlackElo "2228"]
[Result "0-1"]
[Round "04"]
[TimeControl "180+1"]
[Date "2022.04.12"]
[WhiteClock "0:00:06"]
[BlackClock "0:00:09"]

1. e4 {[%clk 0:03:00]}  d5 {[%clk 0:02:59]} 2. exd5 {[%clk 0:03:00]}  Qxd5 {[%clk 0:02:59]} 3. Nf3 {[%clk 0:03:01]}  Nf6 {[%clk 0:02:58]} 4. d4 {[%clk 0:03:00]}  Bg4 {[%clk 0:02:56]} 5. Be2 {[%clk 0:02:58]}  e6 {[%clk 0:02:55]} 6. h3 {[%clk 0:02:58]}  Bh5 {[%clk 0:02:54]} 7. c4 {[%clk 0:02:58]}  Qd8 {[%clk 0:02:52]} 8. Qb3 {[%clk 0:02:58]}  Qc8 {[%clk 0:02:50]} 9. Nc3 {[%clk 0:02:58]}  c6 {[%clk 0:02:49]} 10. Be3 {[%clk 0:02:58]}  Nbd7 {[%clk 0:02:50]} 11. g4 {[%clk 0:02:58]}  Bg6 {[%clk 0:02:49]} 12. O-O-O {[%clk 0:02:55]}  Be7 {[%clk 0:02:41]} 13. g5 {[%clk 0:02:46]}  Ne4 {[%clk 0:02:37]} 14. h4 {[%clk 0:02:39]}  a5 {[%clk 0:02:35]} 15. h5 {[%clk 0:02:33]}  Bf5 {[%clk 0:02:27]} 16. Nxe4 {[%clk 0:02:08]}  Bxe4 {[%clk 0:02:26]} 17. Rh4 {[%clk 0:02:07]}  Bxf3 {[%clk 0:02:07]} 18. Bxf3 {[%clk 0:02:05]}  h6 {[%clk 0:02:08]} 19. Rg4 {[%clk 0:01:50]}  hxg5 {[%clk 0:01:55]} 20. Bxg5 {[%clk 0:01:49]}  Nf6 {[%clk 0:01:51]} 21. Rgg1 {[%clk 0:01:27]}  Qc7 {[%clk 0:01:14]} 22. Qe3 {[%clk 0:01:08]}  a4 {[%clk 0:01:07]} 23. Kb1 {[%clk 0:01:03]}  a3 {[%clk 0:01:07]} 24. b3 {[%clk 0:01:02]}  O-O-O {[%clk 0:01:07]} 25. d5 {[%clk 0:00:35]}  exd5 {[%clk 0:00:47]} 26. cxd5 {[%clk 0:00:35]}  c5 {[%clk 0:00:31]} 27. Bf4 {[%clk 0:00:26]}  Bd6 {[%clk 0:00:29]} 28. Bg5 {[%clk 0:00:18]}  Rde8 {[%clk 0:00:27]} 29. Qd3 {[%clk 0:00:14]}  Nd7 {[%clk 0:00:23]} 30. Bg4 {[%clk 0:00:10]}  f6 {[%clk 0:00:17]} 31. Be3 {[%clk 0:00:09]}  Kb8 {[%clk 0:00:17]} 32. Bxd7 {[%clk 0:00:08]}  Qxd7 {[%clk 0:00:17]} 33. h6 {[%clk 0:00:06]}  gxh6 {[%clk 0:00:17]} 34. Rc1 {[%clk 0:00:07]}  b6 {[%clk 0:00:14]} 35. Qa6 {[%clk 0:00:07]}  Qb7 {[%clk 0:00:10]} 36. Qxb7+ {[%clk 0:00:06]}  Kxb7 {[%clk 0:00:11]} 37. Rg6 {[%clk 0:00:07]}  Be5 {[%clk 0:00:10]} 38. Rxh6 {[%clk 0:00:05]}  Rxh6 {[%clk 0:00:10]} 39. Bxh6 {[%clk 0:00:06]}  Bd4 {[%clk 0:00:10]} 40. Be3 {[%clk 0:00:04]}  Bxe3 {[%clk 0:00:10]} 41. Re1 {[%clk 0:00:04]}  Rd8 {[%clk 0:00:09]} 42. Rxe3 {[%clk 0:00:05]}  Rxd5 {[%clk 0:00:09]} 43. Rf3 {[%clk 0:00:05]}  Rd1+ {[%clk 0:00:06]} 44. Kc2 {[%clk 0:00:05]}  Ra1 {[%clk 0:00:07]} 45. Rxf6 {[%clk 0:00:05]}  Rxa2+ {[%clk 0:00:07]} 46. Kc3 {[%clk 0:00:06]}  Ra1 {[%clk 0:00:06]} 47. f4 {[%clk 0:00:05]}  Rc1+ {[%clk 0:00:06]} 48. Kd2 {[%clk 0:00:05]}  a2 {[%clk 0:00:06]} 49. Rf7+ {[%clk 0:00:04]}  Kc6 {[%clk 0:00:07]} 50. Kxc1 {[%clk 0:00:04]}  a1=Q+ {[%clk 0:00:07]} 51. Kc2 {[%clk 0:00:05]}  Qf1 {[%clk 0:00:06]} 52. Rf6+ {[%clk 0:00:05]}  Kb5 {[%clk 0:00:07]} 53. f5 {[%clk 0:00:04]}  Qe2+ {[%clk 0:00:07]} 54. Kc1 {[%clk 0:00:03]}  Qe3+ {[%clk 0:00:07]} 55. Kc2 {[%clk 0:00:03]}  Qe4+ {[%clk 0:00:07]} 56. Kc1 {[%clk 0:00:03]}  Qd4 {[%clk 0:00:07]} 57. Re6 {[%clk 0:00:03]}  Qc3+ {[%clk 0:00:07]} 58. Kd1 {[%clk 0:00:03]}  Qxb3+ {[%clk 0:00:08]} 59. Ke2 {[%clk 0:00:03]}  Qc2+ {[%clk 0:00:09]} 60. Ke3 {[%clk 0:00:04]}  Qxf5 {[%clk 0:00:09]} 61. Re4 {[%clk 0:00:05]}  Qxe4+ {[%clk 0:00:08]} 62. Kxe4 {[%clk 0:00:06]}  c4 {[%clk 0:00:09]} 63. Kd4 {[%clk 0:00:06]}  Kb4 {[%clk 0:00:09]} 0-1


[Site "https://www.chess.com"]

[Event "Titled Tuesday Blitz April 12 Early 2022"]
[White "Marcziter, Dmitrii"]
[Black "Piesik, Piotr"]
[WhiteFideId "13900765"]
[BlackFideId "1136194"]
[WhiteElo "2155"]
[BlackElo "2190"]
[Result "0-1"]
[Round "04"]
[TimeControl "180+1"]
[Date "2022.04.13"]
[WhiteClock "0:00:17"]
[BlackClock "0:01:14"]

1. d4 {[%clk 0:03:00]}  c5 {[%clk 0:02:50]} 2. d5 {[%clk 0:03:00]}  e5 {[%clk 0:02:50]} 3. e4 {[%clk 0:02:59]}  d6 {[%clk 0:02:50]} 4. Nc3 {[%clk 0:02:58]}  Be7 {[%clk 0:02:50]} 5. b3 {[%clk 0:02:49]}  Bg5 {[%clk 0:02:48]} 6. Bb2 {[%clk 0:02:49]}  a6 {[%clk 0:02:46]} 7. a4 {[%clk 0:02:48]}  Nd7 {[%clk 0:02:41]} 8. g3 {[%clk 0:02:36]}  Ne7 {[%clk 0:02:37]} 9. h4 {[%clk 0:02:35]}  Bh6 {[%clk 0:02:37]} 10. g4 {[%clk 0:02:34]}  Bf4 {[%clk 0:02:37]} 11. Nge2 {[%clk 0:02:31]}  h5 {[%clk 0:02:32]} 12. Nxf4 {[%clk 0:02:30]}  exf4 {[%clk 0:02:33]} 13. g5 {[%clk 0:02:28]}  Ng6 {[%clk 0:02:32]} 14. Be2 {[%clk 0:02:06]}  Nde5 {[%clk 0:02:32]} 15. Bxh5 {[%clk 0:01:52]}  Nxh4 {[%clk 0:02:18]} 16. Rg1 {[%clk 0:01:37]}  f3 {[%clk 0:02:05]} 17. Qd2 {[%clk 0:01:03]}  Ng2+ {[%clk 0:01:59]} 18. Rxg2 {[%clk 0:00:53]}  fxg2 {[%clk 0:01:59]} 19. O-O-O {[%clk 0:00:53]}  Rxh5 {[%clk 0:01:58]} 20. f4 {[%clk 0:00:53]}  Bg4 {[%clk 0:01:39]} 21. Qxg2 {[%clk 0:00:42]}  Bxd1 {[%clk 0:01:36]} 22. fxe5 {[%clk 0:00:42]}  Qxg5+ {[%clk 0:01:32]} 23. Qxg5 {[%clk 0:00:40]}  Rxg5 {[%clk 0:01:33]} 24. Kxd1 {[%clk 0:00:36]}  Rxe5 {[%clk 0:01:31]} 25. Kd2 {[%clk 0:00:36]}  Kd7 {[%clk 0:01:29]} 26. Kd3 {[%clk 0:00:34]}  Rh8 {[%clk 0:01:29]} 27. Nd1 {[%clk 0:00:32]}  Rh3+ {[%clk 0:01:28]} 28. Ne3 {[%clk 0:00:30]}  Rg5 {[%clk 0:01:28]} 29. Bc1 {[%clk 0:00:28]}  Rgg3 {[%clk 0:01:27]} 30. Ke2 {[%clk 0:00:25]}  Rh2+ {[%clk 0:01:21]} 31. Kd3 {[%clk 0:00:24]}  b5 {[%clk 0:01:16]} 32. axb5 {[%clk 0:00:24]}  axb5 {[%clk 0:01:17]} 33. Bb2 {[%clk 0:00:20]}  g6 {[%clk 0:01:16]} 34. e5 {[%clk 0:00:18]}  Rhh3 {[%clk 0:01:13]} 35. Bc1 {[%clk 0:00:15]}  dxe5 {[%clk 0:01:13]} 36. Ke4 {[%clk 0:00:16]}  f5+ {[%clk 0:01:12]} 37. Kxe5 {[%clk 0:00:15]}  Rxe3+ {[%clk 0:01:12]} 38. Bxe3 {[%clk 0:00:15]}  Rxe3+ {[%clk 0:01:13]} 39. Kf6 {[%clk 0:00:16]}  Rc3 {[%clk 0:01:13]} 40. Kxg6 {[%clk 0:00:16]}  Rxc2 {[%clk 0:01:13]} 41. Kxf5 {[%clk 0:00:17]}  Kd6 {[%clk 0:01:13]} 42. Ke4 {[%clk 0:00:17]}  Rc3 {[%clk 0:01:14]} 43. b4 {[%clk 0:00:17]}  cxb4 {[%clk 0:01:14]} 0-1


[Site "https://www.chess.com"]